fUSD/lending_fUSD_20240825
["ID","MTS","AMOUNT","RATE_DAILY","PERIOD"]
[335936473,1724621442668,-319.64850213,0.0001078,2]
[335936474,1724621442677,-500.0,0.00010788,2]
[335936475,1724621442686,-500.0,0.00010797,2]
[335936476,1724621442696,-500.0,0.00010805,2]
[335936477,1724621442705,-500.0,0.00010814,2]
[335936478,1724621442714,-500.0,0.00010823,2]
[335936479,1724621442723,-500.0,0.00010832,2]
[335936480,1724621442733,-500.0,0.00010841,2]
[335936481,1724621442742,-500.0,0.00010849,2]
[335936482,1724621442751,-500.0,0.00010858,2]
[335936483,1724621442761,-824.90008621,0.00010862,2]
[335936484,1724621442770,-500.0,0.00010867,2]
[335936485,1724621442779,-500.0,0.00010876,2]
[335936486,1724621442789,-500.0,0.00010885,2]
[335936487,1724621442799,-499.99,0.00010885,2]
[335936488,1724621442809,-160.03842921,0.00010888,2]
[335936489,1724621442818,-529.77822,0.0001089,2]
[335936490,1724621442827,-77.56022031,0.0001089,2]
[335936491,1724621442839,-231.63322265,0.0001089,2]
[335936492,1724621442849,-251.36677732,0.0001089,2]
[335936493,1724621442860,-56.90220735,0.0001089,2]
[335936494,1724621442870,-500.0,0.00010893,2]
[335936495,1724621442879,-347.8876,0.00010899,2]
[335936496,1724621442888,-299.1055,0.00010899,2]
[335936497,1724621442898,-480.4108,0.00010899,2]
[335936498,1724621442908,-61.27889265,0.00010899,2]
[335936499,1724621442925,-259.02166978,0.00010899,2]
[335936500,1724621442934,-454.75953035,0.00010899,2]
[335936501,1724621442944,-241.94907099,0.000109,2]
[335936502,1724621442953,-291.0283222,0.000109,2]
[335936503,1724621442963,-500.0,0.00010902,2]
[335936504,1724621442973,-500.0,0.00010911,2]
[335936505,1724621442983,-240.69976142,0.00010912,2]
[335936506,1724621443000,-259.30023858,0.00010912,2]
[335936507,1724621443009,-255.66428079,0.0001092,2]
[335936508,1724621443021,-244.33571921,0.0001092,2]
[335936510,1724621443030,-500.0,0.00010929,2]
[335936511,1724621443039,-500.0,0.00010937,2]
[335936513,1724621443049,-500.0,0.00010946,2]
[335936515,1724621443058,-500.0,0.00010955,2]
[335936516,1724621443068,-500.0,0.00010959,2]
[335936517,1724621443077,-500.0,0.00010959,2]
[335936518,1724621443087,-200.0,0.00010959,2]
[335936519,1724621443096,-158.39,0.00010959,2]
[335936520,1724621443105,-1500.0,0.00010959,2]
[335936521,1724621443114,-500.0,0.00010964,2]
[335936522,1724621443123,-500.0,0.00010973,2]
[335936523,1724621443132,-500.0,0.00010973,2]
[335936524,1724621443141,-4344.82,0.00010997,2]
[335936525,1724621443150,-12134.07,0.00010997,2]
[335936526,1724621443160,-4912.35,0.00010997,2]
[335936527,1724621443169,-500.0,0.00010998,2]
[335936528,1724621443179,-500.0,0.00010998,2]
[335936529,1724621443188,-500.0,0.00010998,2]
[335936530,1724621443198,-297.86,0.00010998,2]
[335936531,1724621443206,-155.92,0.00010998,2]
[335936532,1724621443215,-500.0,0.00010998,2]
[335936533,1724621443225,-500.0,0.00010998,2]
[335936534,1724621443234,-160.48,0.00010998,2]
[335936535,1724621443247,-339.07,0.00010998,2]
[335936536,1724621443257,-500.0,0.00010998,2]
[335936537,1724621443267,-625.3,0.00010998,2]
[335936538,1724621443276,-500.0,0.00010998,2]
[335936539,1724621443285,-500.0,0.00010998,2]
[335936540,1724621443295,-500.0,0.00010998,2]
[335936541,1724621443304,-500.0,0.00010998,2]
[335936542,1724621443313,-500.0,0.00010998,2]
[335936543,1724621443324,-500.0,0.00010998,2]
[335936544,1724621443333,-500.0,0.00010998,2]
[335936545,1724621443342,-500.0,0.00010998,2]
[335936546,1724621443352,-5052.13,0.00010998,2]
[335936547,1724621443361,-5052.13,0.00010998,2]
[335936548,1724621443371,-5052.13,0.00010998,2]
[335936549,1724621443380,-5052.13,0.00010998,2]
[335936550,1724621443389,-5052.13,0.00010998,2]
[335936551,1724621443398,-16075.72,0.00010998,2]
[335936552,1724621443408,-16075.72,0.00010998,2]
[335936553,1724621443417,-16075.72,0.00010998,2]
[335936554,1724621443427,-16075.72,0.00010998,2]
[335936555,1724621443437,-16075.72,0.00010998,2]
[335936556,1724621443446,-4344.82,0.00010998,2]
[335936557,1724621443456,-4344.82,0.00010998,2]
[335936558,1724621443465,-4344.82,0.00010998,2]
[335936559,1724621443475,-4344.82,0.00010998,2]
[335936560,1724621443484,-1680.89317225,0.00010998,2]
[335936565,1724621445544,-1620.5506544,0.00010998,2]
[335936566,1724621445555,-698.65,0.00010998,2]
[335936567,1724621445777,-344.72617335,0.00010998,2]
[335936568,1724621445786,-813.48423217,0.00010998,2]
[335936572,1724621452506,233.58377266,0.00010009,2]
[335936573,1724621463295,800.0,0.00026986,120]
[335936574,1724621524481,800.0,0.00026986,120]
[335936575,1724621644732,800.0,0.00026986,120]
[335936576,1724621724156,250.0,9.969e-05,2]
[335936577,1724621765266,800.0,0.00026986,120]
[335936578,1724621812142,3509.85,9.935e-05,2]
[335936579,1724621825929,1356.96,9.931e-05,2]
[335936580,1724621847832,326.82,8.219e-05,2]
[335936581,1724621852338,172.83,9.914e-05,2]
[335936582,1724621875308,238.18,9.912e-05,2]
[335936583,1724621886315,318.5,0.00026986,120]
[335936584,1724622003735,800.0,0.00026986,120]
[335936585,1724622018448,181.79,7.889e-05,2]
[335936586,1724622116130,250.082606,0.00027,120]
[335936587,1724622120893,305.52558761,7.889e-05,2]
[335936588,1724622129026,23900.0,9.845e-05,2]
[335936589,1724622262692,171.00436811,9.995e-05,2]
[335936590,1724622303840,800.0,0.00026986,120]
[335936591,1724622339185,1050.0,0.0001,2]
[335936592,1724622372752,150.0,9.888e-05,2]
[335936593,1724622376396,330.0,8.219e-05,2]
[335936594,1724622406990,240.31032969,0.00010009,2]
[335936595,1724622424591,800.0,0.00026986,120]
[335936596,1724622449008,200.0,9.9e-05,3]
[335936597,1724622450574,800.0,9.768e-05,2]
[335936598,1724622451041,500.0,0.0001,3]
[335936599,1724622573717,181.79,7.767e-05,2]
[335936600,1724622575941,723.7000812,0.00010009,2]
[335936611,1724622590047,171.00436811,9.962e-05,2]
[335936612,1724622598633,571.79736471,0.00010009,2]
[335936617,1724622626654,23900.0,9.696e-05,2]
[335936634,1724622631550,-1511.33349361,0.00010026,2]
[335936635,1724622631560,-2114.38838798,0.00010026,2]
[335936636,1724622631569,-400.0,0.00010063,2]
[335936637,1724622631578,-1081.0,0.00010095,2]
[335936638,1724622631588,-200.0,0.00010096,2]
[335936639,1724622631597,-800.0,0.000101,3]
[335936640,1724622631606,-300.0,0.00010199,2]
[335936641,1724622631615,-300.0,0.00010199,2]
[335936642,1724622631624,-1100.0,0.000102,3]
[335936643,1724622631633,-1400.0,0.000103,3]
[335936644,1724622631643,-200.0,0.000104,3]
[335936645,1724622631652,-499.99,0.00010465,2]
[335936646,1724622631661,-330.0,0.00010465,2]
[335936647,1724622631670,-150.99,0.0001047,2]
[335936648,1724622631679,-419.42427568,0.00010471,2]
[335936649,1724622631688,-200.0,0.000105,3]
[335936650,1724622631697,-527.19740296,0.00010505,2]
[335936651,1724622631707,-500.0,0.00010541,2]
[335936652,1724622631717,-500.0,0.0001055,2]
[335936653,1724622631727,-500.0,0.00010559,2]
[335936654,1724622631736,-500.0,0.00010568,2]
[335936655,1724622631745,-500.0,0.00010577,2]
[335936656,1724622631754,-500.0,0.00010585,2]
[335936657,1724622631763,-500.0,0.00010594,2]
[335936658,1724622631773,-200.0,0.000106,3]
[335936659,1724622631782,-500.0,0.00010603,2]
[335936660,1724622631791,-500.0,0.00010612,2]
[335936661,1724622631800,-500.0,0.00010621,2]
[335936662,1724622631814,-500.0,0.00010629,2]
[335936663,1724622631824,-500.0,0.00010638,2]
[335936664,1724622631834,-500.0,0.00010647,2]
[335936665,1724622631842,-150.0,0.00010647,2]
[335936667,1724622631852,-500.0,0.00010656,2]
[335936669,1724622631863,-500.0,0.00010665,2]
[335936671,1724622631873,-500.0,0.00010673,2]
[335936672,1724622631882,-500.0,0.00010682,2]
[335936673,1724622631892,-500.0,0.00010691,2]
[335936674,1724622631901,-155.0,0.00010699,2]
[335936675,1724622631910,-500.0,0.000107,2]
[335936676,1724622631921,-200.0,0.000107,3]
[335936677,1724622631931,-500.0,0.00010709,2]
[335936678,1724622631941,-654.43258948,0.00010713,2]
[335936679,1724622631953,-500.0,0.00010717,2]
[335936680,1724622631962,-500.0,0.00010726,2]
[335936681,1724622631973,-500.0,0.00010735,2]
[335936682,1724622631982,-500.0,0.00010744,2]
[335936683,1724622631991,-860.6405,0.00010798,2]
[335936684,1724622632000,-1192.2078141,0.00010799,2]
[335936685,1724622632009,-687.8392205,0.00010799,2]
[335936686,1724622632018,-197.37966561,0.00010799,2]
[335936687,1724622632027,-3028.0524,0.00010799,2]
[335936688,1724622632036,-886.3381,0.00010799,2]
[335936689,1724622632045,-1000.0,0.000108,3]
[335936690,1724622632054,-155.0,0.00010888,2]
[335936691,1724622632063,-1656.41152646,0.0001089,2]
[335936692,1724622632073,-529.77822,0.0001089,2]
[335936693,1724622632081,-529.77823,0.0001089,2]
[335936694,1724622632092,-185.42237,0.0001089,2]
[335936695,1724622632101,-3520.9278,0.00010898,2]
[335936696,1724622632111,-475.1075,0.00010898,2]
[335936697,1724622632121,-61826.1902,0.00010898,2]
[335936698,1724622632131,-69198.7822,0.00010898,2]
[335936699,1724622632140,-949.87019613,0.00010899,2]
[335936700,1724622632149,-949.87019605,0.00010899,2]
[335936701,1724622632158,-949.87019605,0.00010899,2]
[335936702,1724622632167,-949.87019605,0.00010899,2]
[335936703,1724622632176,-949.87019605,0.00010899,2]
[335936704,1724622632185,-949.87019605,0.00010899,2]
[335936705,1724622632194,-949.87019605,0.00010899,2]
[335936706,1724622632203,-949.87019605,0.00010899,2]
[335936707,1724622632212,-949.87019605,0.00010899,2]
[335936708,1724622632221,-543.39251436,0.00010899,2]
[335936709,1724622632230,-426.79,0.000109,2]
[335936710,1724622632239,-300.0,0.000109,2]
[335936711,1724622632248,-949.87019605,0.000109,2]
[335936712,1724622632257,-582.0566444,0.000109,2]
[335936713,1724622632266,-394.60484968,0.000109,2]
[335936714,1724622632275,-1791.55694016,0.000109,2]
[335936715,1724622632284,-198.03408237,0.000109,2]
[335936716,1724622632293,-198.03408235,0.000109,2]
[335936717,1724622632301,-201.78608962,0.000109,2]
[335936718,1724622632471,-500.0,0.00010912,2]
[335936719,1724622632480,-529.77822,0.0001093,2]
[335936720,1724622632490,-200.0,0.00010959,2]
[335936721,1724622632498,-152.26,0.00010959,2]
[335936722,1724622632508,-250.0,0.00010959,2]
[335936723,1724622632518,-1500.0,0.00010959,2]
[335936724,1724622632527,-154.42,0.00010959,2]
[335936725,1724622632536,-4249.61,0.00010959,2]
[335936726,1724622632545,-150.0,0.00010959,2]
[335936727,1724622632554,-529.77822,0.0001097,2]
[335936728,1724622632564,-500.0,0.00010973,2]
[335936729,1724622632573,-200.0,0.00010973,2]
[335936730,1724622632582,-200.0,0.00010973,2]
[335936731,1724622632591,-800.0,0.00010989,2]
[335936732,1724622632601,-211.0133722,0.00010989,2]
[335936733,1724622632611,-350.44661177,0.00010996,2]
[335936734,1724622632620,-500.0,0.00010996,2]
[335936735,1724622632630,-475.68,0.00010996,2]
[335936736,1724622632639,-3999.6,0.00010996,2]
[335936737,1724622632648,-3258.61,0.00010996,2]
[335936738,1724622632657,-12726.61,0.00010996,2]
[335936739,1724622632667,-11628.49,0.00010996,2]
[335936740,1724622632677,-4707.67,0.00010996,2]
[335936741,1724622632686,-6058.13,0.00010996,2]
[335936742,1724622632697,-169.70524551,0.00010996,2]
[335936743,1724622632706,-519.40523966,0.00010997,2]
[335936744,1724622632715,-500.0,0.00010997,2]
[335936745,1724622632724,-500.0,0.00010997,2]
[335936746,1724622632733,-500.0,0.00010997,2]
[335936747,1724622632743,-183.23314245,0.00010997,2]
[335936748,1724622632752,-500.0,0.00010997,2]
[335936749,1724622632761,-500.0,0.00010997,2]
[335936750,1724622632771,-500.0,0.00010997,2]
[335936751,1724622632780,-500.0,0.00010997,2]
[335936752,1724622632790,-500.0,0.00010997,2]
[335936753,1724622632799,-500.0,0.00010997,2]
[335936754,1724622632812,-500.0,0.00010997,2]
[335936755,1724622632821,-500.0,0.00010997,2]
[335936756,1724622632831,-500.0,0.00010997,2]
[335936757,1724622632839,-109.80058593,0.00010997,2]
[335936758,1724622632853,-390.19941407,0.00010997,2]
[335936759,1724622632862,-500.0,0.00010997,2]
[335936760,1724622632871,-500.0,0.00010997,2]
[335936761,1724622632882,-500.0,0.00010997,2]
[335936762,1724622632891,-500.0,0.00010997,2]
[335936763,1724622632900,-500.0,0.00010997,2]
[335936764,1724622632910,-500.0,0.00010997,2]
[335936765,1724622632919,-177.16888264,0.00010997,2]
[335936766,1724622632927,-500.0,0.00010997,2]
[335936767,1724622632936,-500.0,0.00010997,2]
[335936768,1724622632947,-500.0,0.00010997,2]
[335936769,1724622632956,-500.0,0.00010997,2]
[335936770,1724622632965,-500.0,0.00010997,2]
[335936771,1724622632974,-500.0,0.00010997,2]
[335936772,1724622632983,-500.0,0.00010997,2]
[335936773,1724622632992,-250.0,0.00010997,2]
[335936774,1724622633001,-500.0,0.00010997,2]
[335936775,1724622633010,-500.0,0.00010997,2]
[335936776,1724622633020,-500.0,0.00010997,2]
[335936777,1724622633029,-4073.63170329,0.00010997,2]
[335936778,1724622633040,-255.5570155,0.00010997,2]
[335936779,1724622633055,-646.41024,0.00010997,2]
[335936780,1724622633066,-960.0,0.00010997,2]
[335936781,1724622637755,-198.03408235,0.000109,2]
[335936782,1724622637766,-893.38,0.00010959,2]
[335936783,1724622637777,-3153.37104121,0.00010997,2]
[335936784,1724622637787,-613.34503512,0.00010997,2]
[335936785,1724622637797,-339.41049102,0.00010997,2]
[335936786,1724622637810,-500.0,0.00010998,2]
[335936787,1724622637819,-167.32616657,0.00010998,2]
[335936788,1724622637829,-529.77822,0.00010998,2]
[335936789,1724622637839,-500.0,0.00010998,2]
[335936790,1724622637849,-500.0,0.00010998,2]
[335936791,1724622637859,-520.22732487,0.00010998,2]
[335936792,1724622637868,-500.0,0.00010998,2]
[335936793,1724622637878,-481.9558455,0.00010998,2]
[335936794,1724622637888,-172.01620449,0.00010998,2]
[335936795,1724622637899,-1006.09439385,0.00010998,2]
[335936796,1724622637910,-2821.48940166,0.00010998,2]
[335936797,1724622637920,-3999.6,0.00010998,2]
[335936798,1724622637929,-3999.6,0.00010998,2]
[335936800,1724622637938,-3999.6,0.00010998,2]
[335936802,1724622637947,-3999.6,0.00010998,2]
[335936804,1724622637957,-3258.61,0.00010998,2]
[335936806,1724622637966,-3258.61,0.00010998,2]
[335936807,1724622637976,-3258.61,0.00010998,2]
[335936809,1724622637985,-3258.61,0.00010998,2]
[335936811,1724622637994,-3258.61,0.00010998,2]
[335936812,1724622638004,-6376.80257536,0.00010998,2]
[335936814,1724622638015,-3936.04611518,0.00010998,2]
[335936816,1724622638026,-313.147835,0.00010998,2]
[335936819,1724622638047,-2100.61347446,0.00010998,2]
[335936821,1724622638057,-12726.61,0.00010998,2]
[335936823,1724622638067,-12726.61,0.00010998,2]
[335936825,1724622638077,-12726.61,0.00010998,2]
[335936827,1724622638086,-12726.61,0.00010998,2]
[335936829,1724622638095,-11628.49,0.00010998,2]
[335936830,1724622638105,-11628.49,0.00010998,2]
[335936831,1724622638114,-11628.49,0.00010998,2]
[335936832,1724622638123,-11628.49,0.00010998,2]
[335936833,1724622638132,-11628.49,0.00010998,2]
[335936834,1724622638141,-9088.97,0.00010998,2]
[335936835,1724622638150,-9088.97,0.00010998,2]
[335936836,1724622638159,-9088.97,0.00010998,2]
[335936837,1724622638169,-9088.97,0.00010998,2]
[335936838,1724622638178,-4707.67,0.00010998,2]
[335936839,1724622638187,-4707.67,0.00010998,2]
[335936840,1724622638197,-4707.67,0.00010998,2]
[335936841,1724622638207,-4707.67,0.00010998,2]
[335936842,1724622638216,-4707.67,0.00010998,2]
[335936843,1724622638225,-6058.13,0.00010998,2]
[335936844,1724622638234,-6058.13,0.00010998,2]
[335936845,1724622638243,-6058.13,0.00010998,2]
[335936846,1724622638253,-6058.13,0.00010998,2]
[335936847,1724622638262,-6058.13,0.00010998,2]
[335936848,1724622638272,-2259.0,0.00010999,2]
[335936849,1724622638281,-4910.80572584,0.00010999,2]
[335936850,1724622638290,-3999.6,0.00010999,2]
[335936851,1724622638299,-3999.6,0.00010999,2]
[335936852,1724622638308,-3999.6,0.00010999,2]
[335936853,1724622638318,-3999.6,0.00010999,2]
[335936854,1724622638327,-3999.6,0.00010999,2]
[335936855,1724622638336,-3999.6,0.00010999,2]
[335936856,1724622638345,-3999.6,0.00010999,2]
[335936857,1724622638354,-3999.6,0.00010999,2]
[335936858,1724622638363,-3999.6,0.00010999,2]
[335936859,1724622638372,-3999.6,0.00010999,2]
[335936860,1724622638381,-3999.6,0.00010999,2]
[335936861,1724622638391,-3999.6,0.00010999,2]
[335936862,1724622638400,-3999.6,0.00010999,2]
[335936863,1724622638410,-3258.61,0.00010999,2]
[335936864,1724622638419,-3258.61,0.00010999,2]
[335936865,1724622638428,-3258.61,0.00010999,2]
[335936866,1724622638437,-3258.61,0.00010999,2]
[335936867,1724622638446,-3258.61,0.00010999,2]
[335936868,1724622638456,-3258.61,0.00010999,2]
[335936869,1724622638466,-3258.61,0.00010999,2]
[335936870,1724622638475,-3258.61,0.00010999,2]
[335936871,1724622638484,-3258.61,0.00010999,2]
[335936872,1724622638493,-3258.61,0.00010999,2]
[335936873,1724622638502,-3258.61,0.00010999,2]
[335936874,1724622638511,-3258.61,0.00010999,2]
[335936875,1724622638520,-3258.61,0.00010999,2]
[335936876,1724622638529,-3258.61,0.00010999,2]
[335936877,1724622638539,-3258.61,0.00010999,2]
[335936878,1724622638547,-3258.61,0.00010999,2]
[335936879,1724622638556,-3258.61,0.00010999,2]
[335936880,1724622638566,-12726.61,0.00010999,2]
[335936881,1724622638575,-3258.8,0.00010999,2]
[335936882,1724622638584,-12726.61,0.00010999,2]
[335936883,1724622638593,-12726.61,0.00010999,2]
[335936884,1724622638602,-12726.61,0.00010999,2]
[335936885,1724622638611,-12726.61,0.00010999,2]
[335936886,1724622638621,-12726.61,0.00010999,2]
[335936887,1724622638630,-12726.61,0.00010999,2]
[335936888,1724622638640,-12726.61,0.00010999,2]
[335936889,1724622638649,-12726.61,0.00010999,2]
[335936890,1724622638659,-12726.61,0.00010999,2]
[335936891,1724622638669,-12726.61,0.00010999,2]
[335936892,1724622638678,-12726.61,0.00010999,2]
[335936893,1724622638687,-12726.61,0.00010999,2]
[335936894,1724622638696,-12726.61,0.00010999,2]
[335936895,1724622638712,-12726.61,0.00010999,2]
[335936896,1724622638722,-12726.61,0.00010999,2]
[335936897,1724622638731,-12726.61,0.00010999,2]
[335936898,1724622638740,-12726.82,0.00010999,2]
[335936899,1724622638749,-11628.49,0.00010999,2]
[335936900,1724622638758,-11628.49,0.00010999,2]
[335936901,1724622638768,-11628.49,0.00010999,2]
[335936902,1724622638777,-11628.49,0.00010999,2]
[335936903,1724622638786,-11628.49,0.00010999,2]
[335936904,1724622638795,-11628.49,0.00010999,2]
[335936905,1724622638805,-11628.49,0.00010999,2]
[335936906,1724622638817,-11628.49,0.00010999,2]
[335936907,1724622638826,-11628.49,0.00010999,2]
[335936908,1724622638835,-11628.49,0.00010999,2]
[335936909,1724622638844,-11628.49,0.00010999,2]
[335936910,1724622638855,-11628.49,0.00010999,2]
[335936911,1724622638865,-11628.49,0.00010999,2]
[335936912,1724622638874,-11628.49,0.00010999,2]
[335936913,1724622638886,-11628.49,0.00010999,2]
[335936914,1724622638896,-11628.49,0.00010999,2]
[335936915,1724622638905,-11628.49,0.00010999,2]
[335936916,1724622638914,-11628.51,0.00010999,2]
[335936917,1724622638923,-9088.97,0.00010999,2]
[335936918,1724622638932,-9088.97,0.00010999,2]
[335936919,1724622638941,-9088.97,0.00010999,2]
[335936920,1724622638952,-9088.97,0.00010999,2]
[335936921,1724622638961,-9088.97,0.00010999,2]
[335936922,1724622638970,-9088.97,0.00010999,2]
[335936923,1724622638979,-9088.97,0.00010999,2]
[335936924,1724622638989,-9088.97,0.00010999,2]
[335936925,1724622638998,-9088.97,0.00010999,2]
[335936926,1724622639007,-9088.97,0.00010999,2]
[335936927,1724622639017,-9088.97,0.00010999,2]
[335936928,1724622639026,-9088.97,0.00010999,2]
[335936929,1724622639035,-9088.97,0.00010999,2]
[335936930,1724622639045,-9088.97,0.00010999,2]
[335936931,1724622639054,-9088.97,0.00010999,2]
[335936932,1724622639063,-9088.97,0.00010999,2]
[335936933,1724622639072,-9088.97,0.00010999,2]
[335936934,1724622639081,-9088.97,0.00010999,2]
[335936935,1724622639090,-9089.05576783,0.00010999,2]
[335936936,1724622639099,-4707.67,0.00010999,2]
[335936937,1724622639108,-4707.67,0.00010999,2]
[335936938,1724622639118,-4707.67,0.00010999,2]
[335936939,1724622639127,-4707.67,0.00010999,2]
[335936940,1724622639136,-4707.67,0.00010999,2]
[335936941,1724622639146,-4707.67,0.00010999,2]
[335936942,1724622639155,-4707.67,0.00010999,2]
[335936943,1724622639164,-4707.67,0.00010999,2]
[335936944,1724622639173,-4707.67,0.00010999,2]
[335936945,1724622639183,-4707.67,0.00010999,2]
[335936946,1724622639192,-4707.67,0.00010999,2]
[335936947,1724622639201,-4707.67,0.00010999,2]
[335936948,1724622639211,-4707.67,0.00010999,2]
[335936949,1724622639220,-4707.67,0.00010999,2]
[335936950,1724622639229,-4707.67,0.00010999,2]
[335936951,1724622639239,-4707.67,0.00010999,2]
[335936952,1724622639249,-4707.67,0.00010999,2]
[335936953,1724622639258,-4707.79,0.00010999,2]
[335936954,1724622639267,-6058.13,0.00010999,2]
[335936955,1724622639276,-6058.13,0.00010999,2]
[335936956,1724622639286,-6058.13,0.00010999,2]
[335936957,1724622639295,-6058.13,0.00010999,2]
[335936958,1724622639305,-6058.13,0.00010999,2]
[335936959,1724622639314,-6058.13,0.00010999,2]
[335936960,1724622639324,-6058.13,0.00010999,2]
[335936961,1724622639333,-6058.13,0.00010999,2]
[335936962,1724622639342,-6058.13,0.00010999,2]
[335936963,1724622639351,-6058.13,0.00010999,2]
[335936964,1724622639361,-6058.13,0.00010999,2]
[335936965,1724622639370,-6058.13,0.00010999,2]
[335936966,1724622639379,-6058.13,0.00010999,2]
[335936967,1724622639388,-6058.13,0.00010999,2]
[335936968,1724622639397,-6058.13,0.00010999,2]
[335936969,1724622639406,-6058.13,0.00010999,2]
[335936970,1724622639415,-6058.13,0.00010999,2]
[335936971,1724622639424,-6058.25,0.00010999,2]
[335936973,1724622639434,-35000.0,0.00010999,2]
[335936975,1724622639443,-1389044.10551119,0.00011,2]
[335936978,1724622639456,-407964.5809444,0.00011,2]
[335936980,1724622639467,-616.67966348,0.00011,2]
[335936996,1724622639676,-320.30056243,0.00010898,2]
[335936997,1724622639686,-2903.72217957,0.00011,2]
[335936998,1724622639697,-840.10442546,0.00011,2]
[335936999,1724622639791,-427990.64888404,0.00011,2]
[335937000,1724622639802,-3449570.0557238,0.00011,2]
[335937001,1724622639816,-200.34451911,0.00011,2]
[335937002,1724622639826,-1228.55143102,0.00011,2]
[335937003,1724622639836,-5684246.95511765,0.00011,2]
[335937004,1724622639906,-313.82530581,0.00011,2]
[335937005,1724622639967,-646.63,0.00011,2]
[335937006,1724622639978,-556.88,0.00011,2]
[335937007,1724622639989,-199496.60798903,0.00011,2]
[335937008,1724622640000,-257.884,0.00011,2]
[335937009,1724622640011,-1901.26971491,0.00011,2]
[335937010,1724622640022,-7088.70735803,0.00011,2]
[335937011,1724622640033,-7659.00000018,0.00011,2]
[335937024,1724622642970,-419.87653924,0.00011,2]
[335937025,1724622642982,-300.0,0.00011,2]
[335937026,1724622643031,-7059.3,0.00011,2]
[335937027,1724622643044,-623.2797952,0.00011,2]
[335937028,1724622643089,-834.92804833,0.00011,2]
[335937029,1724622643102,-296.95776435,0.00011,2]
[335937030,1724622643115,-566.62860673,0.00011,2]
[335937031,1724622643205,-317.58278286,0.00011,2]
[335937032,1724622643217,-11154.19311522,0.00011,2]
[335937033,1724622643228,-11454.00752807,0.00011,2]
[335937034,1724622643267,-18264.91042152,0.00011,2]
[335937070,1724622645599,-867.13,0.00011,2]
[335937071,1724622645611,-4681.0,0.00011,2]
[335937072,1724622645622,-362.2774596,0.00011,2]
[335937073,1724622645666,-279.6363521,0.00011,2]
[335937074,1724622645676,-376.87925389,0.00011,2]
[335937075,1724622645688,-498.16488683,0.00011,2]
[335937076,1724622645700,-306.5016076,0.00011,2]
[335937077,1724622645791,-3553.90086326,0.00011,2]
[335937078,1724622645802,-64563.93887599,0.00011,2]
[335937079,1724622645862,-3625.5644,0.00011,2]
[335937080,1724622645874,-10310.39,0.00011,2]
[335937081,1724622645886,-436.81,0.00011,2]
[335937082,1724622645898,-12798.92691549,0.00011,2]
[335937083,1724622645910,-2693.82653913,0.00011,2]
[335937084,1724622645922,-587.2050527,0.00011,2]
[335937085,1724622645933,-1502.556,0.00011,2]
[335937086,1724622645948,-1214.69466643,0.00011,2]
[335937087,1724622645962,-16107.5,0.00011,2]
[335937505,1724622667895,400.0,9.9e-05,3]
[335937506,1724622670095,900.0,0.0001,3]
[335937507,1724622716320,485.07840464,0.0001,2]
[335937508,1724622799832,2000.0,0.00026849,120]
[335937509,1724622800336,2000.0,0.00026849,120]
[335937510,1724622811005,500.0,0.00024932,120]
[335937511,1724622835014,200.0,0.00026197,120]
[335937512,1724622873945,336.61,8.219e-05,2]
[335937513,1724622991912,949.88761953,9.962e-05,2]
[335937514,1724623032803,520.0,0.00010013,2]